[Event "Early-Titled-Tuesday-Blitz-May-14-2024"]
[Site "Chess.com"]
[Date "2024.05.14"]
[Round "8"]
[White "Kirill_Klukin"]
[Black "IvanMorovic"]
[Result "1-0"]
[WhiteElo "2830"]
[BlackElo "2593"]
[TimeControl "180+1"]
[EndTime "9:32:24 PDT"]
[Termination "Kirill_Klukin won by checkmate"]

1. d4 {[%clk 0:03:00.9]} 1... d5 {[%clk 0:02:59.8]} 2. c4 {[%clk 0:03:00.8]}
2... e6 {[%clk 0:03:00]} 3. Nc3 {[%clk 0:03:00.8]} 3... c5 {[%clk 0:02:59.8]} 4.
cxd5 {[%clk 0:02:59.6]} 4... exd5 {[%clk 0:02:59.1]} 5. Nf3 {[%clk 0:02:59.8]}
5... Nc6 {[%clk 0:02:58.2]} 6. g3 {[%clk 0:02:57.9]} 6... Nf6 {[%clk 0:02:58.4]}
7. Bg2 {[%clk 0:02:58.2]} 7... Be7 {[%clk 0:02:59]} 8. Bg5 {[%clk 0:02:56.8]}
8... O-O {[%clk 0:02:59.6]} 9. O-O {[%clk 0:02:56.6]} 9... cxd4 {[%clk
0:02:56.2]} 10. Nxd4 {[%clk 0:02:56.4]} 10... h6 {[%clk 0:02:56.8]} 11. Bf4
{[%clk 0:02:47.9]} 11... Re8 {[%clk 0:02:53.3]} 12. Rc1 {[%clk 0:02:44.4]} 12...
Bb4 {[%clk 0:02:34]} 13. Ncb5 {[%clk 0:02:13.8]} 13... Nxd4 {[%clk 0:02:14.2]}
14. Qxd4 {[%clk 0:02:11.8]} 14... Ba5 {[%clk 0:02:07.1]} 15. Bc7 {[%clk
0:02:09.7]} 15... Qd7 {[%clk 0:02:00.4]} 16. Bxa5 {[%clk 0:01:13.1]} 16... Qxb5
{[%clk 0:01:59.4]} 17. Bc3 {[%clk 0:01:13.9]} 17... Rxe2 {[%clk 0:01:52.1]} 18.
Rfd1 {[%clk 0:00:57.9]} 18... Re8 {[%clk 0:01:46.4]} 19. Qf4 {[%clk 0:00:49.5]}
19... Ne4 {[%clk 0:01:37.7]} 20. Bd4 {[%clk 0:00:37.5]} 20... Be6 {[%clk
0:01:25.4]} 21. h4 {[%clk 0:00:24.1]} 21... f6 {[%clk 0:01:04.9]} 22. Bf1 {[%clk
0:00:14.8]} 22... Qd7 {[%clk 0:00:59]} 23. Rc7 {[%clk 0:00:10.6]} 23... Qd6
{[%clk 0:00:59.1]} 24. Rxb7 {[%clk 0:00:04.2]} 24... Qxf4 {[%clk 0:00:58.8]} 25.
gxf4 {[%clk 0:00:05.1]} 25... Nd6 {[%clk 0:00:56.6]} 26. Rb3 {[%clk 0:00:01.8]}
26... Nf5 {[%clk 0:00:55.8]} 27. Bc5 {[%clk 0:00:01.4]} 27... d4 {[%clk
0:00:54.2]} 28. Rbd3 {[%clk 0:00:01.6]} 28... Bxa2 {[%clk 0:00:52.1]} 29. Bxd4
{[%clk 0:00:01.6]} 29... Bc4 {[%clk 0:00:52]} 30. R3d2 {[%clk 0:00:01.8]} 30...
Bxf1 {[%clk 0:00:52.7]} 31. Kxf1 {[%clk 0:00:02.5]} 31... Nxh4 {[%clk
0:00:52.3]} 32. Bc3 {[%clk 0:00:02.7]} 32... Nf5 {[%clk 0:00:49.9]} 33. Rd7
{[%clk 0:00:02.7]} 33... Re7 {[%clk 0:00:48.5]} 34. R7d5 {[%clk 0:00:02.6]}
34... Nh4 {[%clk 0:00:42]} 35. Ra1 {[%clk 0:00:02.5]} 35... Ng6 {[%clk
0:00:40.1]} 36. Rd4 {[%clk 0:00:02.9]} 36... Rae8 {[%clk 0:00:36.3]} 37. Rda4
{[%clk 0:00:03]} 37... Re4 {[%clk 0:00:34.7]} 38. Rxe4 {[%clk 0:00:03.3]} 38...
Rxe4 {[%clk 0:00:34.1]} 39. f5 {[%clk 0:00:04.2]} 39... Nh4 {[%clk 0:00:33.9]}
40. Rxa7 {[%clk 0:00:04.7]} 40... Nxf5 {[%clk 0:00:34.4]} 41. Rc7 {[%clk
0:00:04.6]} 41... h5 {[%clk 0:00:33.3]} 42. b4 {[%clk 0:00:04.9]} 42... h4
{[%clk 0:00:32.9]} 43. Kg2 {[%clk 0:00:05.6]} 43... Rg4+ {[%clk 0:00:32.6]} 44.
Kh3 {[%clk 0:00:05.4]} 44... Rf4 {[%clk 0:00:32.7]} 45. Kg2 {[%clk 0:00:06]}
45... Rg4+ {[%clk 0:00:29.7]} 46. Kh3 {[%clk 0:00:06.4]} 46... Rg1 {[%clk
0:00:28.6]} 47. b5 {[%clk 0:00:02.8]} 47... Rh1+ {[%clk 0:00:27.3]} 48. Kg2
{[%clk 0:00:02.9]} 48... Rc1 {[%clk 0:00:25.2]} 49. Rc5 {[%clk 0:00:03.6]} 49...
Nd6 {[%clk 0:00:24.2]} 50. b6 {[%clk 0:00:04]} 50... Kf7 {[%clk 0:00:20.7]} 51.
Rc6 {[%clk 0:00:04.4]} 51... Ne4 {[%clk 0:00:19.6]} 52. Rc7+ {[%clk 0:00:05]}
52... Kg6 {[%clk 0:00:18.3]} 53. Bxf6 {[%clk 0:00:03.6]} 53... Rxc7 {[%clk
0:00:16.6]} 54. bxc7 {[%clk 0:00:03.9]} 54... Nd6 {[%clk 0:00:17.4]} 55. Bxh4
{[%clk 0:00:04.7]} 55... Nc8 {[%clk 0:00:17.2]} 56. Bg3 {[%clk 0:00:05.3]} 56...
Kf5 {[%clk 0:00:17.4]} 57. Kf3 {[%clk 0:00:05.8]} 57... g5 {[%clk 0:00:18.1]}
58. Ke3 {[%clk 0:00:06.3]} 58... g4 {[%clk 0:00:18.1]} 59. Kd4 {[%clk
0:00:06.8]} 59... Ne7 {[%clk 0:00:17.6]} 60. Kc5 {[%clk 0:00:06.7]} 60... Ke6
{[%clk 0:00:18]} 61. Kd4 {[%clk 0:00:05.1]} 61... Kd7 {[%clk 0:00:17.4]} 62. Ke4
{[%clk 0:00:05.4]} 62... Ke6 {[%clk 0:00:17.6]} 63. Kf4 {[%clk 0:00:05.6]} 63...
Nc8 {[%clk 0:00:14.1]} 64. Kxg4 {[%clk 0:00:06.1]} 64... Kf6 {[%clk 0:00:14.9]}
65. Kf4 {[%clk 0:00:05.9]} 65... Ke6 {[%clk 0:00:15.8]} 66. Ke4 {[%clk
0:00:06.5]} 66... Kd7 {[%clk 0:00:16.2]} 67. Kd5 {[%clk 0:00:06.7]} 67... Ne7+
{[%clk 0:00:16.5]} 68. Kc5 {[%clk 0:00:06.7]} 68... Kc8 {[%clk 0:00:17.2]} 69.
Be5 {[%clk 0:00:06.5]} 69... Ng6 {[%clk 0:00:17.1]} 70. Bd6 {[%clk 0:00:05.9]}
70... Nh4 {[%clk 0:00:17.1]} 71. f4 {[%clk 0:00:06.1]} 71... Nf5 {[%clk
0:00:17.6]} 72. Be5 {[%clk 0:00:06.7]} 72... Ne7 {[%clk 0:00:17.4]} 73. Kd6
{[%clk 0:00:06.3]} 73... Ng6 {[%clk 0:00:17.5]} 74. Ke6 {[%clk 0:00:06.7]} 74...
Nh4 {[%clk 0:00:16.8]} 75. f5 {[%clk 0:00:06.8]} 75... Nf3 {[%clk 0:00:17]} 76.
f6 {[%clk 0:00:05.2]} 76... Ng5+ {[%clk 0:00:17.9]} 77. Ke7 {[%clk 0:00:05.7]}
77... Nf3 {[%clk 0:00:16.6]} 78. Bf4 {[%clk 0:00:03.6]} 78... Nd4 {[%clk
0:00:16.4]} 79. f7 {[%clk 0:00:03.8]} 79... Nf5+ {[%clk 0:00:15.2]} 80. Kf6
{[%clk 0:00:03.8]} 80... Nd4 {[%clk 0:00:06.9]} 81. f8=Q+ {[%clk 0:00:04.1]}
81... Kb7 {[%clk 0:00:06.8]} 82. c8=Q+ {[%clk 0:00:04.8]} 82... Kb6 {[%clk
0:00:07.3]} 83. Qfc5# {[%clk 0:00:05.3]} 1-0

[Event "Early-Titled-Tuesday-Blitz-May-14-2024"]
[Site "Chess.com"]
[Date "2024.05.14"]
[Round "8"]
[White "meoluoi91"]
[Black "Timerkhanov"]
[Result "1-0"]
[WhiteElo "2580"]
[BlackElo "2702"]
[TimeControl "180+1"]
[EndTime "9:32:30 PDT"]
[Termination "meoluoi91 won by checkmate"]

1. d4 {[%clk 0:03:00.9]} 1... d5 {[%clk 0:02:53.7]} 2. c4 {[%clk 0:03:00]} 2...
e6 {[%clk 0:02:52.7]} 3. Nc3 {[%clk 0:03:00.1]} 3... Nf6 {[%clk 0:02:53.1]} 4.
Bg5 {[%clk 0:02:59.2]} 4... Be7 {[%clk 0:02:48.7]} 5. e3 {[%clk 0:02:59.2]} 5...
O-O {[%clk 0:02:48.2]} 6. Nf3 {[%clk 0:02:59.6]} 6... h6 {[%clk 0:02:48.2]} 7.
Bh4 {[%clk 0:02:58.8]} 7... Ne4 {[%clk 0:02:42.1]} 8. Bxe7 {[%clk 0:02:55.3]}
8... Qxe7 {[%clk 0:02:42.7]} 9. Qc2 {[%clk 0:02:51.9]} 9... Nxc3 {[%clk
0:02:39.9]} 10. Qxc3 {[%clk 0:02:51.8]} 10... c6 {[%clk 0:02:38.2]} 11. Bd3
{[%clk 0:02:51.4]} 11... Nd7 {[%clk 0:02:37.2]} 12. O-O {[%clk 0:02:51.3]} 12...
dxc4 {[%clk 0:02:07.8]} 13. Bxc4 {[%clk 0:02:49.4]} 13... c5 {[%clk 0:02:07.6]}
14. Rac1 {[%clk 0:02:39.8]} 14... cxd4 {[%clk 0:01:47.6]} 15. exd4 {[%clk
0:02:38.9]} 15... Nf6 {[%clk 0:01:18.9]} 16. Rfe1 {[%clk 0:02:28.6]} 16... b5
{[%clk 0:01:00.4]} 17. Bxb5 {[%clk 0:02:21.2]} 17... Bb7 {[%clk 0:01:00.2]} 18.
Ne5 {[%clk 0:02:18.5]} 18... Nd5 {[%clk 0:00:57.3]} 19. Qg3 {[%clk 0:02:06.6]}
19... Rad8 {[%clk 0:00:48.3]} 20. a3 {[%clk 0:02:03.2]} 20... Nf6 {[%clk
0:00:35.5]} 21. Red1 {[%clk 0:01:50.9]} 21... Ne4 {[%clk 0:00:34]} 22. Qe3
{[%clk 0:01:47.9]} 22... Bd5 {[%clk 0:00:27.1]} 23. Bc6 {[%clk 0:01:44.8]} 23...
Rc8 {[%clk 0:00:21.4]} 24. Bxd5 {[%clk 0:01:39.9]} 24... exd5 {[%clk 0:00:22.3]}
25. Qb3 {[%clk 0:01:07.8]} 25... Qe6 {[%clk 0:00:17.3]} 26. f3 {[%clk 0:01:03]}
26... Nd6 {[%clk 0:00:16.2]} 27. Qa4 {[%clk 0:00:54.2]} 27... Rxc1 {[%clk
0:00:15.1]} 28. Rxc1 {[%clk 0:00:53.9]} 28... f6 {[%clk 0:00:15.6]} 29. Ng4
{[%clk 0:00:52.4]} 29... h5 {[%clk 0:00:15]} 30. Nf2 {[%clk 0:00:52.4]} 30...
Qe3 {[%clk 0:00:15]} 31. Qd1 {[%clk 0:00:46.3]} 31... Nc4 {[%clk 0:00:14.3]} 32.
Rc3 {[%clk 0:00:43.7]} 32... Qf4 {[%clk 0:00:12.3]} 33. g3 {[%clk 0:00:42.1]}
33... Qd6 {[%clk 0:00:09.1]} 34. b3 {[%clk 0:00:39.2]} 34... Nxa3 {[%clk
0:00:09.2]} 35. Rc5 {[%clk 0:00:39.4]} 35... a6 {[%clk 0:00:08.2]} 36. f4 {[%clk
0:00:37.6]} 36... Nb5 {[%clk 0:00:08.7]} 37. Qxh5 {[%clk 0:00:37.6]} 37... Nxd4
{[%clk 0:00:08.1]} 38. Qxd5+ {[%clk 0:00:37.3]} 38... Qxd5 {[%clk 0:00:08.5]}
39. Rxd5 {[%clk 0:00:38.2]} 39... Nxb3 {[%clk 0:00:09.4]} 40. Ne4 {[%clk
0:00:36.1]} 40... Ra8 {[%clk 0:00:09.1]} 41. Nc3 {[%clk 0:00:35.5]} 41... a5
{[%clk 0:00:08.8]} 42. Na4 {[%clk 0:00:34.8]} 42... Rb8 {[%clk 0:00:09.1]} 43.
Kg2 {[%clk 0:00:21]} 43... Kh8 {[%clk 0:00:08.5]} 44. Kh3 {[%clk 0:00:20.6]}
44... Kh7 {[%clk 0:00:08.9]} 45. Kg4 {[%clk 0:00:20.9]} 45... Rb4 {[%clk
0:00:09.5]} 46. Nc3 {[%clk 0:00:20.3]} 46... Rc4 {[%clk 0:00:06.9]} 47. Nb5
{[%clk 0:00:20.3]} 47... a4 {[%clk 0:00:06.8]} 48. Rd7 {[%clk 0:00:20.1]} 48...
Rb4 {[%clk 0:00:06]} 49. Nd6 {[%clk 0:00:20]} 49... Rb8 {[%clk 0:00:03.6]} 50.
Ra7 {[%clk 0:00:19.6]} 50... Nd4 {[%clk 0:00:01.9]} 51. Rxa4 {[%clk 0:00:18.7]}
51... Ne6 {[%clk 0:00:02.3]} 52. Ra7 {[%clk 0:00:17.3]} 52... Rd8 {[%clk
0:00:02]} 53. Nf5 {[%clk 0:00:16.4]} 53... Kg6 {[%clk 0:00:02.5]} 54. h4 {[%clk
0:00:16.4]} 54... Kh7 {[%clk 0:00:01.7]} 55. h5 {[%clk 0:00:16.4]} 55... Re8
{[%clk 0:00:02.1]} 56. h6 {[%clk 0:00:16.7]} 56... Kg6 {[%clk 0:00:02.3]} 57.
Nxg7 {[%clk 0:00:16.3]} 57... Nxg7 {[%clk 0:00:02.5]} 58. h7 {[%clk 0:00:15.6]}
58... Kxh7 {[%clk 0:00:02.4]} 59. Kf3 {[%clk 0:00:14.6]} 59... Kg6 {[%clk
0:00:03.3]} 60. g4 {[%clk 0:00:15]} 60... Rb8 {[%clk 0:00:03.1]} 61. Ra6 {[%clk
0:00:15.2]} 61... Kf7 {[%clk 0:00:02.9]} 62. Ra7+ {[%clk 0:00:14.7]} 62... Kg6
{[%clk 0:00:03.4]} 63. Kg3 {[%clk 0:00:14.5]} 63... Rb3+ {[%clk 0:00:02.4]} 64.
Kh4 {[%clk 0:00:14.9]} 64... Rb1 {[%clk 0:00:03.3]} 65. f5+ {[%clk 0:00:13.1]}
65... Kh6 {[%clk 0:00:03.1]} 66. Ra6 {[%clk 0:00:13.5]} 66... Rh1+ {[%clk
0:00:03.6]} 67. Kg3 {[%clk 0:00:13.9]} 67... Kg5 {[%clk 0:00:04.5]} 68. Ra7
{[%clk 0:00:14]} 68... Ne8 {[%clk 0:00:03.3]} 69. Re7 {[%clk 0:00:13.2]} 69...
Nd6 {[%clk 0:00:03.4]} 70. Rg7+ {[%clk 0:00:12.5]} 70... Kh6 {[%clk 0:00:02]}
71. Rg6+ {[%clk 0:00:13.4]} 71... Kh7 {[%clk 0:00:02.5]} 72. Kf4 {[%clk
0:00:13.7]} 72... Rf1+ {[%clk 0:00:01.9]} 73. Ke3 {[%clk 0:00:14]} 73... Re1+
{[%clk 0:00:02.2]} 74. Kd4 {[%clk 0:00:14.5]} 74... Ne4 {[%clk 0:00:02.5]} 75.
Kd5 {[%clk 0:00:15]} 75... Nf2 {[%clk 0:00:02.5]} 76. g5 {[%clk 0:00:11.9]}
76... fxg5 {[%clk 0:00:02.4]} 77. Rxg5 {[%clk 0:00:12.4]} 77... Rd1+ {[%clk
0:00:03.3]} 78. Ke6 {[%clk 0:00:12.1]} 78... Ne4 {[%clk 0:00:03.7]} 79. Rg4
{[%clk 0:00:12.5]} 79... Nc5+ {[%clk 0:00:03.8]} 80. Kf7 {[%clk 0:00:12.9]}
80... Re1 {[%clk 0:00:04.3]} 81. Rh4# {[%clk 0:00:12.6]} 1-0

[Event "Early-Titled-Tuesday-Blitz-May-14-2024"]
[Site "Chess.com"]
[Date "2024.05.14"]
[Round "8"]
[White "David_Arutinian"]
[Black "santosalberto1987"]
[Result "1-0"]
[WhiteElo "2840"]
[BlackElo "2610"]
[TimeControl "180+1"]
[EndTime "9:32:43 PDT"]
[Termination "David_Arutinian won on time"]

1. Nf3 {[%clk 0:03:00.9]} 1... Nf6 {[%clk 0:02:58.9]} 2. c4 {[%clk 0:02:57.6]}
2... c6 {[%clk 0:02:56.3]} 3. e3 {[%clk 0:02:56.2]} 3... d5 {[%clk 0:02:56.4]}
4. Nc3 {[%clk 0:02:56.5]} 4... a6 {[%clk 0:02:56.4]} 5. d4 {[%clk 0:02:54.3]}
5... Bf5 {[%clk 0:02:56.3]} 6. Qb3 {[%clk 0:02:49.6]} 6... Ra7 {[%clk
0:02:56.4]} 7. Bd2 {[%clk 0:02:49.2]} 7... e6 {[%clk 0:02:55.9]} 8. Be2 {[%clk
0:02:48]} 8... h6 {[%clk 0:02:53.1]} 9. O-O {[%clk 0:02:48.5]} 9... Nbd7 {[%clk
0:02:53.2]} 10. a4 {[%clk 0:02:47.3]} 10... Be7 {[%clk 0:02:51.7]} 11. a5 {[%clk
0:02:47.9]} 11... O-O {[%clk 0:02:51.4]} 12. Rfc1 {[%clk 0:02:47.6]} 12... Ne4
{[%clk 0:02:48.5]} 13. Be1 {[%clk 0:02:44.8]} 13... Bd6 {[%clk 0:02:42.7]} 14.
Nxe4 {[%clk 0:02:39.6]} 14... Bxe4 {[%clk 0:02:42.4]} 15. Bb4 {[%clk 0:02:37.3]}
15... Qe7 {[%clk 0:02:19.2]} 16. Bxd6 {[%clk 0:02:24]} 16... Qxd6 {[%clk
0:02:20.1]} 17. Nd2 {[%clk 0:02:24.2]} 17... Bg6 {[%clk 0:02:19.1]} 18. Qa3
{[%clk 0:02:24.1]} 18... Qxa3 {[%clk 0:02:12.9]} 19. Rxa3 {[%clk 0:02:25]} 19...
Nf6 {[%clk 0:01:53.6]} 20. Rb3 {[%clk 0:02:21.2]} 20... Ne4 {[%clk 0:01:50.5]}
21. Nf3 {[%clk 0:02:21.1]} 21... f6 {[%clk 0:01:45]} 22. Rb6 {[%clk 0:02:18.7]}
22... Nd6 {[%clk 0:01:38.2]} 23. Rb4 {[%clk 0:02:10.9]} 23... Kf7 {[%clk
0:01:33.9]} 24. Kf1 {[%clk 0:02:05.3]} 24... Ke7 {[%clk 0:01:33.6]} 25. Ke1
{[%clk 0:02:05.6]} 25... Kd7 {[%clk 0:01:33.8]} 26. Nd2 {[%clk 0:02:04.9]} 26...
Be4 {[%clk 0:01:20.8]} 27. f3 {[%clk 0:02:03.6]} 27... Bh7 {[%clk 0:01:20.7]}
28. Nb3 {[%clk 0:02:04.2]} 28... Re8 {[%clk 0:01:04.6]} 29. Nc5+ {[%clk
0:02:01.8]} 29... Kc7 {[%clk 0:00:49.9]} 30. Kd2 {[%clk 0:02:00.3]} 30... Bg8
{[%clk 0:00:46.4]} 31. Bf1 {[%clk 0:01:56.1]} 31... e5 {[%clk 0:00:42.9]} 32.
cxd5 {[%clk 0:01:52]} 32... exd4 {[%clk 0:00:34]} 33. Rxd4 {[%clk 0:01:37.4]}
33... Bxd5 {[%clk 0:00:29.8]} 34. e4 {[%clk 0:01:38]} 34... Bf7 {[%clk
0:00:29.1]} 35. Kc3 {[%clk 0:01:37.7]} 35... Raa8 {[%clk 0:00:26.4]} 36. Rcd1
{[%clk 0:01:37.5]} 36... Rad8 {[%clk 0:00:25.5]} 37. Kb4 {[%clk 0:01:35.7]}
37... Bg8 {[%clk 0:00:20.8]} 38. R1d2 {[%clk 0:01:34.6]} 38... Bf7 {[%clk
0:00:20.2]} 39. g3 {[%clk 0:01:24.4]} 39... Bg8 {[%clk 0:00:19.9]} 40. h4 {[%clk
0:01:24.6]} 40... Bf7 {[%clk 0:00:20]} 41. Na4 {[%clk 0:00:55.5]} 41... Bg8
{[%clk 0:00:15.7]} 42. b3 {[%clk 0:00:53.6]} 42... Nc8 {[%clk 0:00:14.7]} 43.
Nc5 {[%clk 0:00:46.6]} 43... Rxd4+ {[%clk 0:00:13.2]} 44. Rxd4 {[%clk
0:00:47.5]} 44... Nd6 {[%clk 0:00:13.5]} 45. Kc3 {[%clk 0:00:46.6]} 45... Be6
{[%clk 0:00:11.4]} 46. Kd2 {[%clk 0:00:45.2]} 46... Bf7 {[%clk 0:00:10.4]} 47.
b4 {[%clk 0:00:45.5]} 47... Bg8 {[%clk 0:00:08.6]} 48. Bd3 {[%clk 0:00:45.1]}
48... Bf7 {[%clk 0:00:08.5]} 49. f4 {[%clk 0:00:45.4]} 49... Bg8 {[%clk
0:00:08.9]} 50. Bf1 {[%clk 0:00:43.7]} 50... Bf7 {[%clk 0:00:07.8]} 51. Bh3
{[%clk 0:00:44.1]} 51... Bg8 {[%clk 0:00:08]} 52. Bf1 {[%clk 0:00:40.4]} 52...
Bh7 {[%clk 0:00:08]} 53. Bg2 {[%clk 0:00:39.6]} 53... Bg8 {[%clk 0:00:07.4]} 54.
Bf3 {[%clk 0:00:40.1]} 54... Bf7 {[%clk 0:00:07.6]} 55. Kd3 {[%clk 0:00:36.7]}
55... Bg8 {[%clk 0:00:07.5]} 56. Bg4 {[%clk 0:00:36.9]} 56... Bf7 {[%clk
0:00:07.4]} 57. Nxb7 {[%clk 0:00:37.1]} 57... Bc4+ {[%clk 0:00:05.3]} 58. Kc2
{[%clk 0:00:31]} 58... Nxb7 {[%clk 0:00:03.6]} 59. Rxc4 {[%clk 0:00:29.6]} 59...
Nd6 {[%clk 0:00:04.5]} 60. Rd4 {[%clk 0:00:29.6]} 60... Rxe4 {[%clk 0:00:05.1]}
61. Kd3 {[%clk 0:00:25.4]} 61... Re1 {[%clk 0:00:04.4]} 62. Kd2 {[%clk
0:00:18.8]} 62... Rg1 {[%clk 0:00:04.6]} 63. Rd3 {[%clk 0:00:19.4]} 63... Rb1
{[%clk 0:00:04.7]} 64. Kc3 {[%clk 0:00:18.1]} 64... Rc1+ {[%clk 0:00:04.9]} 65.
Kb2 {[%clk 0:00:17.8]} 65... Rg1 {[%clk 0:00:04.8]} 66. h5 {[%clk 0:00:12]}
66... Rg2+ {[%clk 0:00:03]} 67. Kb3 {[%clk 0:00:12]} 67... Rg1 {[%clk
0:00:03.1]} 68. Be6 {[%clk 0:00:11.8]} 68... Re1 {[%clk 0:00:02.9]} 69. Bg8
{[%clk 0:00:11.3]} 69... Rg1 {[%clk 0:00:02.8]} 70. Bh7 {[%clk 0:00:11]} 70...
Rb1+ {[%clk 0:00:02.5]} 71. Kc3 {[%clk 0:00:10.5]} 71... Rc1+ {[%clk 0:00:02.7]}
72. Kb2 {[%clk 0:00:10.8]} 72... Rg1 {[%clk 0:00:02.8]} 73. Kc2 {[%clk
0:00:11.1]} 73... Rg2+ {[%clk 0:00:02.4]} 74. Kc3 {[%clk 0:00:11.5]} 74... Rg1
{[%clk 0:00:03.3]} 75. Re3 {[%clk 0:00:12]} 75... Rc1+ {[%clk 0:00:03.1]} 76.
Kb3 {[%clk 0:00:12.5]} 76... Kd7 {[%clk 0:00:02.8]} 77. Bg6 {[%clk 0:00:12]}
77... Rg1 {[%clk 0:00:02.5]} 78. Rd3 {[%clk 0:00:12]} 78... Kc7 {[%clk
0:00:02.3]} 79. Rc3 {[%clk 0:00:11.4]} 79... Rf1 {[%clk 0:00:02.2]} 80. Re3
{[%clk 0:00:11.4]} 80... Kd7 {[%clk 0:00:01.8]} 81. Bc2 {[%clk 0:00:11.5]} 81...
Rg1 {[%clk 0:00:01.6]} 82. Kc3 {[%clk 0:00:11.6]} 82... Nb5+ {[%clk 0:00:01.8]}
83. Kc4 {[%clk 0:00:11.1]} 83... Nd6+ {[%clk 0:00:02.2]} 84. Kd3 {[%clk
0:00:11]} 84... Rc1 {[%clk 0:00:01.6]} 85. Kd2 {[%clk 0:00:11.1]} 85... Rg1
{[%clk 0:00:01.6]} 86. Bg6 {[%clk 0:00:11.3]} 86... Kc7 {[%clk 0:00:01.7]} 87.
Ke2 {[%clk 0:00:11.5]} 87... Kd7 {[%clk 0:00:01.6]} 88. Kf2 {[%clk 0:00:11.9]}
88... Rb1 {[%clk 0:00:02.3]} 89. Bxb1 {[%clk 0:00:11.2]} 1-0

[Event "Early-Titled-Tuesday-Blitz-May-14-2024"]
[Site "Chess.com"]
[Date "2024.05.14"]
[Round "9"]
[White "ilimchess2"]
[Black "kekic76"]
[Result "1-0"]
[WhiteElo "2300"]
[BlackElo "2286"]
[TimeControl "180+1"]
[EndTime "9:41:44 PDT"]
[Termination "ilimchess2 won by checkmate"]

1. d4 {[%clk 0:03:00.3]} 1... d5 {[%clk 0:02:59.8]} 2. Nf3 {[%clk 0:03:00]} 2...
Nf6 {[%clk 0:02:59.4]} 3. Bf4 {[%clk 0:03:00.5]} 3... c5 {[%clk 0:02:59]} 4. e3
{[%clk 0:03:00.9]} 4... Nc6 {[%clk 0:02:59.2]} 5. Nbd2 {[%clk 0:03:01.4]} 5...
e6 {[%clk 0:02:59.2]} 6. c3 {[%clk 0:03:01.1]} 6... Bd6 {[%clk 0:02:58.5]} 7.
Bg3 {[%clk 0:03:01.6]} 7... O-O {[%clk 0:02:58.1]} 8. Bd3 {[%clk 0:03:02]} 8...
Bxg3 {[%clk 0:02:57.9]} 9. hxg3 {[%clk 0:03:01.9]} 9... b6 {[%clk 0:02:51.1]}
10. e4 {[%clk 0:02:56.7]} 10... dxe4 {[%clk 0:02:49]} 11. Nxe4 {[%clk
0:02:56.7]} 11... g6 {[%clk 0:02:46.4]} 12. dxc5 {[%clk 0:02:50.3]} 12... Bb7
{[%clk 0:02:34.4]} 13. cxb6 {[%clk 0:02:45.3]} 13... axb6 {[%clk 0:02:35.3]} 14.
Qe2 {[%clk 0:02:44.6]} 14... Nxe4 {[%clk 0:02:28.8]} 15. Bxe4 {[%clk 0:02:43.5]}
15... Ba6 {[%clk 0:02:28.1]} 16. Qe3 {[%clk 0:02:41.7]} 16... Ne7 {[%clk
0:02:17.8]} 17. Qh6 {[%clk 0:02:39.1]} 17... Re8 {[%clk 0:02:17.1]} 18. Qxh7+
{[%clk 0:02:39.1]} 18... Kf8 {[%clk 0:02:17.5]} 19. Qh6+ {[%clk 0:02:38.8]}
19... Kg8 {[%clk 0:02:17.6]} 20. Qh8# {[%clk 0:02:39.3]} 1-0

[Event "Early-Titled-Tuesday-Blitz-May-14-2024"]
[Site "Chess.com"]
[Date "2024.05.14"]
[Round "9"]
[White "falzehope0"]
[Black "Incognizance"]
[Result "1-0"]
[WhiteElo "2360"]
[BlackElo "1976"]
[TimeControl "180+1"]
[EndTime "9:42:11 PDT"]
[Termination "falzehope0 won by checkmate"]

1. d4 {[%clk 0:02:45.7]} 1... Nf6 {[%clk 0:02:59.8]} 2. e3 {[%clk 0:02:41.2]}
2... e6 {[%clk 0:02:59.6]} 3. Bd3 {[%clk 0:02:40.9]} 3... d5 {[%clk 0:02:59.5]}
4. f4 {[%clk 0:02:41.1]} 4... Bd6 {[%clk 0:02:59.8]} 5. Nf3 {[%clk 0:02:41.4]}
5... O-O {[%clk 0:03:00.3]} 6. O-O {[%clk 0:02:41.7]} 6... c5 {[%clk 0:03:01.2]}
7. c3 {[%clk 0:02:41.9]} 7... Nc6 {[%clk 0:03:01.6]} 8. Nbd2 {[%clk 0:02:42.2]}
8... b6 {[%clk 0:03:02.1]} 9. Ne5 {[%clk 0:02:42.5]} 9... Bb7 {[%clk 0:03:02.3]}
10. Qf3 {[%clk 0:02:42.3]} 10... cxd4 {[%clk 0:02:59.2]} 11. exd4 {[%clk
0:02:42.3]} 11... Rc8 {[%clk 0:02:59.2]} 12. g4 {[%clk 0:02:42]} 12... Nd7
{[%clk 0:02:50]} 13. Qh3 {[%clk 0:02:37]} 13... g6 {[%clk 0:02:49]} 14. Qh6
{[%clk 0:02:29.2]} 14... Ncxe5 {[%clk 0:02:28.5]} 15. fxe5 {[%clk 0:02:27.1]}
15... Be7 {[%clk 0:02:28.9]} 16. Nf3 {[%clk 0:02:26.2]} 16... Re8 {[%clk
0:02:27.5]} 17. Ng5 {[%clk 0:02:24.1]} 17... Bxg5 {[%clk 0:02:24]} 18. Bxg5
{[%clk 0:02:25]} 18... Qc7 {[%clk 0:02:06.9]} 19. Rxf7 {[%clk 0:02:21.6]} 19...
Kxf7 {[%clk 0:02:04]} 20. Qxh7+ {[%clk 0:02:20.9]} 20... Kf8 {[%clk 0:02:04.6]}
21. Bh6# {[%clk 0:02:20.8]} 1-0

[Event "Early-Titled-Tuesday-Blitz-May-14-2024"]
[Site "Chess.com"]
[Date "2024.05.14"]
[Round "9"]
[White "scarabee43"]
[Black "edgarhay012"]
[Result "0-1"]
[WhiteElo "2799"]
[BlackElo "2645"]
[TimeControl "180+1"]
[EndTime "9:42:56 PDT"]
[Termination "edgarhay012 won by checkmate"]

1. Nf3 {[%clk 0:03:00.9]} 1... Nf6 {[%clk 0:02:59.7]} 2. c4 {[%clk 0:03:00.6]}
2... e6 {[%clk 0:02:59.4]} 3. Nc3 {[%clk 0:03:01]} 3... d5 {[%clk 0:02:59.9]} 4.
e3 {[%clk 0:03:00.4]} 4... Be7 {[%clk 0:02:59.5]} 5. b3 {[%clk 0:03:00.9]} 5...
c5 {[%clk 0:02:57]} 6. Bb2 {[%clk 0:03:01]} 6... O-O {[%clk 0:02:55.6]} 7. cxd5
{[%clk 0:02:58.4]} 7... exd5 {[%clk 0:02:56.5]} 8. d4 {[%clk 0:02:58.3]} 8...
Nc6 {[%clk 0:02:55.9]} 9. Be2 {[%clk 0:02:58.3]} 9... Be6 {[%clk 0:02:52.7]} 10.
O-O {[%clk 0:02:56.2]} 10... Rc8 {[%clk 0:02:50.9]} 11. Rc1 {[%clk 0:02:54.1]}
11... cxd4 {[%clk 0:02:48.8]} 12. Nxd4 {[%clk 0:02:53.7]} 12... Nxd4 {[%clk
0:02:49.1]} 13. Qxd4 {[%clk 0:02:54.4]} 13... Bc5 {[%clk 0:02:47.8]} 14. Qh4
{[%clk 0:02:46.8]} 14... d4 {[%clk 0:02:43.6]} 15. Na4 {[%clk 0:02:42.5]} 15...
d3 {[%clk 0:02:39.1]} 16. Bxd3 {[%clk 0:02:40.8]} 16... Qxd3 {[%clk 0:02:16.6]}
17. Nxc5 {[%clk 0:02:39]} 17... Qe2 {[%clk 0:02:14]} 18. Bxf6 {[%clk 0:02:38.3]}
18... gxf6 {[%clk 0:02:13.5]} 19. Qxf6 {[%clk 0:02:37]} 19... Rc6 {[%clk
0:02:07.3]} 20. Ne4 {[%clk 0:02:23.3]} 20... Rfc8 {[%clk 0:01:52.1]} 21. Rcd1
{[%clk 0:02:19.6]} 21... Bg4 {[%clk 0:01:44.3]} 22. Rd8+ {[%clk 0:02:10.6]}
22... Rxd8 {[%clk 0:01:43.7]} 23. Qxd8+ {[%clk 0:02:11.3]} 23... Kg7 {[%clk
0:01:44.4]} 24. Qd4+ {[%clk 0:02:11.8]} 24... f6 {[%clk 0:01:43.4]} 25. Qxa7
{[%clk 0:02:11.2]} 25... Qxf1+ {[%clk 0:01:42.9]} 26. Kxf1 {[%clk 0:02:11.4]}
26... Rc1# {[%clk 0:01:43.6]} 0-1